Workbook

Sheet STOCK ANALYSIS
A1: MONTHLY KITCHEN STOCK DIFFERENCE (WEEKLY)
A3: OUTLET : | B3: KDA OUTLET
A4: MONTH : | B4: 2013-09-01
A6: STOCK DIFFERENCE
A8: NO | B8: MATERIAL | C8: UOM | D8: 01.09.13 | E8: 02.09.13-08.09.13 | F8: 09.09.13-15.09.13 | G8: 16.09.13-22.09.13 | H8: 23.09.13-29.09.13 | I8: 30.09.13 | J8: TOTAL
J9: STOCK DIFFERENCE
B11: MAIN COURSE MATERIAL
A12: 1 | B12: CHICKEN CHOP (MARINATED) | C12: PCS | D12: 4.3 | E12: -418.1 | F12: 58 | G12: 69.98 | H12: 54.28 | I12: 113.5 | J12: =SUM(D12:I12) -> -118.04 | K12: =+#REF!-J12 -> 
A14: =+A12+1 -> 2 | B14: =+'[1]K-LUNCH & K DINNER'!O23 -> CHICKEN WINGS (MARINATED) | C14: PCS | D14: 0 | E14: -116.1 | F14: 16 | G14: -25 | H14: 67 | I14: 4 | J14: =SUM(D14:I14) -> -54.1
B15: CHICKEN WINGS ( NON MARINATED) | C15: PCS | D15: 0 | E15: -36 | F15: -36 | G15: -21 | H15: -23 | I15: -8 | J15: -124
D16: =SUM(D14:D15) -> 0 | E16: -152.1 | F16: -20 | G16: -46 | H16: 44 | I16: -4 | J16: -178.1
A18: =+A14+1 -> 3 | B18: =+'[1]SIDE ORDER & FOC'!Q17 -> FISH & CHIP | C18: PCS | D18: 1 | E18: -96 | F18: -15 | G18: -10 | H18: -14 | I18: -1 | J18: =SUM(D18:I18) -> -135
A21: USAGE DIFFERENCE
A24: NO | B24: MATERIAL | C24: UOM | D24: 01.09.13 | F24: 02.09.13-08.09.13 | H24: 09.09.13-15.09.13 | J24: 16.09.13-22.09.13 | L24: 23.09.13-29.09.13 | N24: 30.09.13
D26: EXCEL FORMAT | E26: MANUAL RECORD | F26: EXCEL FORMAT | G26: MANUAL RECORD | H26: EXCEL FORMAT | I26: MANUAL RECORD | J26: EXCEL FORMAT | K26: MANUAL RECORD | L26: EXCEL FORMAT | M26: MANUAL RECORD | N26: EXCEL FORMAT | O26: MANUAL RECORD
B27: MAIN COURSE MATERIAL
A28: 1 | B28: CHICKEN CHOP (MARINATED) | C28: PCS | D28: 102.3 | E28: 98 | F28: 121.9 | G28: 540 | H28: 572.9 | I28: 514 | J28: 647.98 | K28: 578 | L28: 637.28 | M28: 583
A29: =+A28+1 -> 2 | B29: CHICKEN WINGS (MARINATED) | C29: PCS | D29: 42 | E29: 42 | F29: 57 | G29: 173 | H29: 291 | I29: 275 | J29: 219 | K29: 244 | L29: 186 | M29: 119
A30: 3 | B30: CHICKEN WINGS (Non-MARINATED) | C30: PCS | D30: 10 | E30: 10 | F30: 9 | G30: 45 | H30: 28 | I30: 64 | J30: 24 | K30: 45 | L30: 23 | M30: 46
A31: 4 | B31: FISH & CHIP | C31: PCS | D31: 31 | E31: 30 | F31: 32 | G31: 128 | H31: 163 | I31: 178 | J31: 153 | K31: 163 | L31: 141 | M31: 155
A34: USAGE DIFFERENCE BETWEEN EXCEL FORMAT & MANUAL RECORD
B36: MAIN COURSE MATERIAL | E36: DIFFERENCE | G36: DIFFERENCE | I36: DIFFERENCE | K36: DIFFERENCE | M36: DIFFERENCE | O36: DIFFERENCE
A37: 1 | B37: CHICKEN CHOP (MARINATED) | E37: =+E28-D28 -> -4.3 | G37: =+G28-F28 -> 418.1 | I37: =+I28-H28 -> -58.9 | K37: =+K28-J28 -> -69.98 | M37: =+M28-L28 -> -54.28 | O37: =+O28-N28 -> 0
A38: =+A37+1 -> 2 | B38: CHICKEN WINGS (MARINATED) | E38: =+E29-D29 -> 0 | G38: =+G29-F29 -> 116 | I38: =+I29-H29 -> -16 | K38: =+K29-J29 -> 25 | M38: =+M29-L29 -> -67 | O38: =+O29-N29 -> 0
A39: 3 | B39: CHICKEN WINGS (Non-MARINATED) | E39: =+E30-D30 -> 0 | G39: =+G30-F30 -> 36 | I39: =+I30-H30 -> 36 | K39: =+K30-J30 -> 21 | M39: =+M30-L30 -> 23 | O39: =+O30-N30 -> 0
A40: 4 | B40: FISH & CHIP | E40: =+E31-D31 -> -1 | G40: =+G31-F31 -> 96 | I40: =+I31-H31 -> 15 | K40: =+K31-J31 -> 10 | M40: =+M31-L31 -> 14 | O40: =+O31-N31 -> 0
A43: CHICKEN CHOP (MARINATED )
A46: DATE | B46: USAGE | C46: BASED ON OUTLET | E46: DIFFERENCE
B47: BASED ON SYSTEM | C47: KITCHEN WEEKLY
A49: 2 | B49: 54.4 | C49: 47 | E49: =+C49-B49 -> -7.4
A50: =+A49+1 -> 3 | B50: 46.8 | C50: 70 | E50: =+C50-B50 -> 23.2
A51: =+A50+1 -> 4 | B51: 60.4 | C51: 26 | E51: -34.4
A52: 5 | B52: 61.5 | C52: 51 | E52: -10.5
A53: 6 | B53: 138.2 | C53: 141 | E53: 2.8
A54: 7 | B54: 117 | C54: 81 | E54: -36
A55: 8 | B55: 121.9 | C55: 124 | E55: 2.1
A56: 9 | B56: 48.6 | C56: 28 | E56: -20.6
A57: 10 | B57: 73.3 | C57: 97 | E57: 23.7
A58: 11 | B58: 49.9 | C58: 40 | E58: -9.9
A59: 12 | B59: 50.6 | C59: 33 | E59: -17.6
A60: 13 | B60: 124.9 | C60: 122 | E60: -2.9
A61: 14 | B61: 105.5 | C61: 82 | E61: -23.5
A62: 15 | B62: 120.6 | C62: 112 | E62: -8.6 | F62: =SUM(E56:E62) -> -59.4
A63: 16 | B63: 134.6 | C63: 131 | E63: -3.6
A64: 17 | B64: 59.9 | C64: 53 | E64: -6.9
A65: 18 | B65: 69.6 | C65: 56 | E65: -13.6
A66: 19 | B66: 40.3 | C66: 36 | E66: -4.3
A67: 20 | B67: 112.2 | C67: 149 | E67: 36.8
A68: 21 | B68: 118.2 | C68: 94 | E68: -24.2
A69: 22 | B69: 113.2 | C69: 89 | E69: -24.2
A70: 23 | B70: 62.3 | C70: 58 | E70: -4.3
A71: 24 | B71: 53.5 | C71: 65 | E71: 11.5
A72: 25 | B72: 74.6 | C72: 60 | E72: -14.6
A73: 26 | B73: 81.3 | C73: 64 | E73: -17.3
A74: 27 | B74: 133.2 | C74: 138 | E74: 4.8
A75: 28 | B75: 100.2 | C75: 94 | E75: -6.2
A76: 29 | B76: 129.9 | C76: 104 | E76: -25.9
A77: 30
A79: CHICKEN WINGS (MARINATED )
A81: DATE | B81: USAGE | C81: BASED ON OUTLET | E81: DIFFERENCE
B82: BASED ON SYSTEM | C82: KITCHEN WEEKLY
A84: 2 | B84: 15 | C84: 17 | E84: =+C84-B84 -> 2
A85: =+A84+1 -> 3 | B85: 18 | C85: 21 | E85: =+C85-B85 -> 3
A86: =+A85+1 -> 4 | B86: 39 | C86: 30 | E86: -9
A87: 5 | B87: 9 | C87: 12 | E87: 3
A88: 6 | B88: 39 | C88: 9 | E88: -30
A89: 7 | B89: 30 | C89: 54 | E89: 24
A90: 8 | B90: 57 | C90: 30 | E90: -27
A91: 9 | B91: 51 | C91: 60 | E91: 9
A92: 10 | B92: 42 | C92: 38 | E92: -4
A93: 11 | B93: 18 | C93: 33 | E93: 15
A94: 12 | B94: 36 | C94: 21 | E94: -15
A95: 13 | B95: 57 | C95: 75 | E95: 18
A96: 14 | B96: 45 | C96: 39 | E96: -6
A97: 15 | B97: 42 | C97: 30 | E97: -12
A98: 16 | B98: 51 | C98: 44 | E98: -7
A99: 17 | B99: 18 | C99: 24 | E99: 6
A100: 18 | B100: 27 | C100: 32 | E100: 5
A101: 19 | B101: 27 | C101: 15 | E101: -12
A102: 20 | B102: 24 | C102: 15 | E102: -9
A103: 21 | B103: 33 | C103: 102 | E103: 69
A104: 22 | B104: 39 | C104: 12 | E104: -27
A105: 23 | B105: 15 | C105: 16 | E105: 1
A106: 24 | B106: 12 | C106: 4 | E106: -8
A107: 25 | B107: 18 | C107: 3 | E107: -15
A108: 26 | B108: 27 | C108: 4 | E108: -23
A109: 27 | B109: 39 | C109: 7 | E109: -32
A110: 28 | B110: 48 | C110: 4 | E110: -44
A111: 29 | B111: 17 | C111: 8 | E111: -9
A112: 30
A115: FISH N CHIPS
A117: DATE | B117: USAGE | C117: BASED ON OUTLET | E117: DIFFERENCE
B118: BASED ON SYSTEM | C118: KITCHEN WEEKLY
A120: 2 | B120: 15 | C120: 10 | E120: =+C120-B120 -> -5
A121: =+A120+1 -> 3 | B121: 11 | C121: 7 | E121: =+C121-B121 -> -4
A122: =+A121+1 -> 4 | B122: 3 | C122: 20 | E122: 17
A123: 5 | B123: 6 | C123: 13 | E123: 7
A124: 6 | B124: 33 | C124: 8 | E124: -25
A125: 7 | B125: 38 | C125: 42 | E125: 4
A126: 8 | B126: 32 | C126: 28 | E126: -4
A127: 9 | B127: 1 | C127: 33 | E127: 32
A128: 10 | B128: 14 | C128: 13 | E128: -1
A129: 11 | B129: 16 | C129: 11 | E129: -5
A130: 12 | B130: 20 | C130: 6 | E130: -14
A131: 13 | B131: 31 | C131: 25 | E131: -6
A132: 14 | B132: 28 | C132: 40 | E132: 12
A133: 15 | B133: 46 | C133: 90 | E133: 44
A134: 16 | B134: 32 | C134: 24 | E134: -8
A135: 17 | B135: 10 | C135: 41 | E135: 31
A136: 18 | B136: 16 | C136: 12 | E136: -4
A137: 19 | B137: 16 | C137: 27 | E137: 11
A138: 20 | B138: 29 | C138: 29 | E138: 0
A139: 21 | B139: 34 | C139: 48 | E139: 14
A140: 22 | B140: 16 | C140: 35 | E140: 19
A141: 23 | B141: 15 | C141: 16 | E141: 1
A142: 24 | B142: 4 | C142: 34 | E142: 30
A143: 25 | B143: 17 | C143: 11 | E143: -6
A144: 26 | B144: 18 | C144: 27 | E144: 9
A145: 27 | B145: 32 | C145: 31 | E145: -1
A146: 28 | B146: 21 | C146: 28 | E146: 7
A147: 29 | B147: 27 | C147: 35 | E147: 8
A148: 30
